bitfinex/quotes_ETHUSD_20250223
["timestamp","ask_amount","ask_price","bid_price","bid_amount"]
[1740350571545,3.56328,2806.4,2805.9,3.56389]
[1740350571719,3.56346,2806.3,2805.8,3.0]
[1740350572058,3.56328,2806.4,2805.8,3.56398]
[1740350572257,3.5636,2806.2,2805.7,3.56408]
[1740350572428,3.5636,2806.2,2805.8,3.0]
[1740350572961,3.56372,2806.1,2805.5,3.56436]
[1740350573123,3.24637591,2806.4,2805.4,3.56454]
[1740350573124,3.56393,2805.9,2805.4,3.56454]
[1740350573517,3.56393,2805.9,2805.3,0.36896999]
[1740350573718,3.56393,2805.9,2805.2,3.56468]
[1740350573719,3.56404,2805.8,2805.2,3.56468]
[1740350574132,3.56423,2805.7,2805.1,3.56493]
[1740350574337,3.56423,2805.7,2805.2,3.5647]
[1740350574672,4.39672,2805.6,2805.1,3.56485]
[1740350574827,0.8324,2805.6,2805.1,7.12971]
[1740350575017,0.8324,2805.6,2805.2,6.56477]
[1740350575459,4.3967,2805.6,2805.1,3.56483]
[1740350575755,4.3967,2805.6,2805.1,3.56491]
[1740350575958,4.3967,2805.6,2804.7,8.9554]
[1740350575959,5.192817,2805.6,2805.2,3.0]
[1740350576117,3.56451,2805.5,2805.2,3.0]
[1740350576547,3.56442,2805.5,2805.0,3.565]
[1740350576953,3.56442,2805.5,2805.1,3.0]
[1740350577462,3.56456,2805.4,2804.9,3.56512]
[1740350577633,3.56471,2805.3,2804.9,3.56512]
[1740350578621,3.56444,2805.5,2804.9,3.56512]
[1740350578861,3.56462,2805.4,2804.9,3.56512]
[1740350581269,3.5647,2805.3,2804.9,3.56512]
[1740350582921,3.5647,2805.3,2804.8,3.0]
[1740350583126,3.5647,2805.3,2804.8,6.56523]
[1740350583936,0.7531,2805.2,2804.8,6.56523]
[1740350584561,3.56512,2805.0,2804.5,3.56558]
[1740350584931,4.353432,2805.0,2804.4,3.0]
[1740350585133,0.7531,2804.7,2804.4,3.0]
[1740350585333,0.7531,2804.7,2804.4,6.56577]
[1740350586076,0.7531,2804.7,2804.4,3.0]
[1740350589079,0.7531,2804.7,2804.4,6.56574]
[1740350589250,0.7531,2804.7,2804.4,8.117913]
[1740350590283,0.7531,2804.7,2804.4,6.56574]
[1740350591685,0.7531,2804.7,2804.4,3.0]
[1740350593484,0.7531,2804.7,2804.2,3.56599]
[1740350594487,0.7531,2804.7,2804.3,3.0]
[1740350594784,4.31854,2804.7,2804.3,3.0]
[1740350594979,4.31854,2804.7,2804.0,7.13252]
[1740350595180,4.31854,2804.7,2804.0,3.56626]
[1740350595385,4.31854,2804.7,2804.1,3.56619]
[1740350595545,4.21214,2804.7,2804.1,3.56619]
[1740350595949,3.56562,2804.6,2804.0,3.56626]
[1740350596684,3.56562,2804.6,2803.8,3.56651]
[1740350596884,3.56575,2804.5,2803.9,3.56644]
[1740350598448,3.56575,2804.5,2804.0,3.0]
[1740350598647,3.56575,2804.5,2804.0,6.56633]
[1740350602899,0.8252,2804.4,2804.0,6.56633]
[1740350604304,0.777,2804.7,2804.0,6.56633]
[1740350604498,0.777,2804.7,2804.1,5.033963]
[1740350604741,3.56566,2804.6,2804.1,3.0]
[1740350604901,7.13135,2804.6,2804.1,3.0]
[1740350605061,3.5657,2804.5,2804.1,3.0]
[1740350608307,7.13132,2804.6,2804.1,6.56619]
[1740350608514,4.29646728,2804.6,2804.1,6.56619]
[1740350608686,8.81508,2805.0,2804.2,6.80045091]
[1740350608687,5.25,2805.0,2804.2,6.80045091]
[1740350608873,1.071924,2805.7,2805.0,3.56506]
[1740350609084,3.56436,2805.6,2805.1,3.56486]
[1740350609279,3.56457,2805.4,2805.0,3.56506]
[1740350609593,3.56457,2805.4,2804.9,3.0]
[1740350609801,4.06808013,2805.4,2804.9,3.0]
[1740350610005,4.32608013,2805.4,2804.9,3.0]
[1740350610173,4.32608013,2805.4,2804.9,6.56513]
[1740350611497,3.82257,2805.4,2804.9,3.56513]
[1740350613728,3.56457,2805.4,2804.9,3.56513]
[1740350617313,3.56457,2805.4,2804.9,3.56518]
[1740350618364,1.0178,2805.5,2805.0,3.56498]
[1740350618365,4.58224,2805.5,2805.0,3.56498]
[1740350618549,3.56457,2805.4,2805.0,3.56498]
[1740350619042,3.56457,2805.4,2804.9,3.56514]
[1740350622463,3.82157,2805.4,2804.9,3.56514]
[1740350623869,0.7742,2805.3,2804.9,3.56514]
[1740350624166,0.7742,2804.9,2804.7,5.39]
[1740350624332,0.7742,2804.9,2804.5,3.56569]
[1740350625831,3.565,2805.1,2804.6,3.56556]
[1740350626742,7.13003,2805.1,2804.6,3.56556]
[1740350626957,0.7928,2805.2,2804.6,3.56556]
[1740350627147,0.7928,2805.2,2804.8,3.5653]
[1740350627836,0.7928,2805.2,2804.8,3.56524]
[1740350630751,4.35765,2805.2,2804.7,3.56542]
[1740350631775,4.35765,2805.2,2804.6,3.56546]
[1740350631963,0.7928,2805.2,2804.7,3.56534]
[1740350632164,1.68320835,2805.2,2804.7,3.56534]
[1740350632852,5.24804835,2805.2,2804.7,3.56534]
[1740350634077,3.56484,2805.2,2804.8,0.7554]
[1740350634280,5.51161482,2806.6,2804.9,0.826]
[1740350634577,0.8292,2806.4,2805.9,3.56388]
[1740350635364,0.72899332,2806.2,2805.7,0.826]
[1740350635552,0.72899332,2806.2,2806.0,3.56368]
[1740350635965,0.8292,2806.4,2806.0,3.56368]
[1740350636580,0.72427953,2806.3,2806.0,3.56368]
[1740350636963,3.56381,2806.0,2805.5,3.56441]
[1740350637289,3.82181,2806.0,2805.4,3.56445]
[1740350637636,3.56404,2805.9,2805.4,3.56445]
[1740350637842,3.56436,2805.6,2805.1,8.95489]
[1740350638155,3.56436,2805.6,2804.8,13.13192]
[1740350638156,0.7566,2805.4,2804.9,3.5651]
[1740350638573,0.7566,2805.4,2805.1,3.56491]
[1740350641084,0.7566,2805.4,2805.1,3.56484]
[1740350641276,0.8259,2805.7,2805.3,3.56468]
[1740350644191,0.8259,2805.7,2805.4,3.56443]
[1740350644380,9.58625,2806.0,2805.4,3.56448]
[1740350644711,3.56393,2805.9,2805.4,3.56448]
[1740350645883,7.12796,2805.9,2805.4,3.56448]
[1740350647988,3.56393,2805.9,2805.4,3.56448]
[1740350648815,3.56422,2805.7,2805.2,4.37808]
[1740350649018,3.56416,2805.8,2805.2,4.37804]
[1740350649221,3.56413,2805.8,2805.3,3.56467]
[1740350649864,7.12825,2805.8,2805.3,3.56467]
[1740350650345,3.56412,2805.8,2805.4,3.56455]
[1740350650692,3.56412,2805.8,2805.3,3.56467]
[1740350651945,3.56412,2805.8,2805.4,3.56454]
[1740350652329,5.25,2806.0,2805.5,0.7948]
[1740350652500,5.25,2806.0,2805.6,3.56419]
[1740350653439,8.81379,2806.0,2805.6,3.56419]
[1740350654122,5.25,2806.0,2805.5,0.7948]
[1740350654453,9.79468953,2806.3,2805.8,3.56394]
[1740350654623,11.50713248,2806.3,2805.8,3.56394]
[1740350654823,15.07063248,2806.3,2805.8,3.56394]
[1740350656348,11.50713248,2806.3,2805.6,3.56421]
[1740350656546,3.56361,2806.2,2805.6,3.5642]
[1740350656771,3.56361,2806.2,2805.6,7.12843]
[1740350657049,3.56361,2806.2,2805.6,3.5642]
[1740350657990,3.56361,2806.2,2805.6,7.12843]
[1740350659115,3.56361,2806.2,2805.7,3.56407]
[1740350659320,4.26937282,2806.2,2805.7,3.56407]
[1740350659925,5.25,2806.3,2805.9,3.56382]
[1740350660126,5.507,2806.3,2806.0,3.56372]
[1740350660319,0.257,2806.3,2806.0,3.56372]
[1740350663259,0.257,2806.3,2806.1,3.56364]
[1740350664560,1.46553758,2806.4,2806.1,3.56364]
[1740350664891,1.72253758,2806.4,2806.1,3.56364]
[1740350665216,0.7749,2806.7,2806.1,0.712746]
[1740350665557,5.25,2807.0,2806.7,3.56288]
[1740350665558,0.257,2806.8,2806.7,3.56288]
[1740350666637,0.822,2807.2,2806.8,3.56273]
[1740350666823,1.0412,2807.4,2807.0,3.5625]
[1740350667027,0.460314,2807.3,2807.0,3.5625]
[1740350667563,1.18305502,2807.3,2807.0,3.5625]
[1740350667859,0.72274102,2807.3,2806.9,0.7534]
[1740350668072,1.0412,2807.4,2806.9,4.31594]
[1740350668369,1.0412,2807.4,2807.1,3.56238]
[1740350669473,0.257,2807.4,2807.1,3.56238]
[1740350670882,0.97931265,2807.5,2807.1,3.56236]
[1740350671039,0.72231265,2807.5,2807.1,3.56236]
[1740350671241,9.85942,2807.6,2807.1,3.56236]
[1740350671550,1.0828,2807.8,2807.3,3.56203]
[1740350671982,1.0828,2807.8,2807.5,3.56185]
[1740350674582,1.0828,2807.8,2807.4,3.56193]
[1740350674779,4.27099417,2807.9,2807.4,4.39523]
[1740350674938,4.27099417,2807.9,2807.4,4.76809999]
[1740350675363,0.70960417,2807.9,2807.6,3.56173]
[1740350675684,0.8182,2808.0,2807.4,1.20616999]
[1740350675888,10.79620791,2808.1,2807.7,3.56153]
[1740350677399,8.009,2808.1,2807.7,3.56153]
[1740350677755,8.009,2808.1,2807.8,3.5615]
[1740350678281,0.1497981,2808.2,2808.0,3.56125]
[1740350679281,0.1497981,2808.2,2808.1,3.56112]
[1740350679583,0.1497981,2808.2,2808.0,3.56125]
[1740350679789,0.1497981,2808.2,2808.0,4.351383]
[1740350680088,0.1497981,2808.2,2808.1,3.56112]
[1740350680781,0.1497981,2808.2,2808.1,4.37282]
[1740350681775,0.1497981,2808.2,2808.1,4.92282]
[1740350683702,0.1497981,2808.2,2808.1,4.37282]
[1740350683890,0.1497981,2808.2,2808.1,4.15709999]
[1740350684407,0.1497981,2808.2,2808.1,4.96459999]
[1740350684882,0.1497981,2808.2,2808.1,5.51459999]
[1740350688477,0.1497981,2808.2,2808.1,4.96459999]
[1740350691314,0.1497981,2808.2,2808.1,5.51459999]
[1740350691812,0.1497981,2808.2,2808.1,4.96459999]
[1740350693781,0.1497981,2808.2,2808.1,4.15709999]
[1740350696019,0.1497981,2808.2,2808.1,4.98139999]
[1740350697505,0.1497981,2808.2,2808.1,4.15709999]
[1740350699409,0.1497981,2808.2,2808.1,0.59597999]
[1740350700620,0.1497981,2808.2,2808.1,4.15709999]
[1740350709705,0.1497981,2808.2,2808.1,8.47249999]
[1740350709906,0.1497981,2808.2,2808.1,13.86249999]
[1740350709907,8.1e-06,2808.2,2808.1,13.86249999]
[1740350716625,8.1e-06,2808.2,2808.1,22.67249999]
[1740350716989,8.1e-06,2808.2,2808.1,22.77249999]
[1740350717190,8.1e-06,2808.2,2808.1,26.53349999]
[1740350720032,0.005,2808.9,2808.1,26.53349999]
[1740350720033,1e-05,2808.9,2808.8,4.09332433]
[1740350720335,1e-05,2808.9,2808.8,15.82053224]
[1740350721037,1e-05,2808.9,2808.8,15.62053791]
[1740350721253,1e-05,2808.9,2808.8,15.82053224]
[1740350722436,1e-05,2808.9,2808.8,19.68153224]
[1740350722748,1e-05,2808.9,2808.8,20.47166524]
[1740350723452,0.8322,2810.6,2810.4,3.55815]
[1740350723752,0.8322,2810.6,2810.3,3.55833]
[1740350724048,0.8322,2810.6,2810.4,3.0]
[1740350724235,0.8322,2810.6,2810.3,3.5583]
[1740350724434,0.8322,2810.6,2810.2,3.55838]
[1740350724642,6.78418991,2810.6,2809.8,3.55888]
[1740350724808,0.8322,2810.3,2809.8,3.55888]
[1740350725325,0.8322,2810.3,2809.6,3.55916]
[1740350725326,0.8322,2810.2,2809.7,3.55909]
[1740350725649,0.8322,2810.2,2809.8,3.0]
[1740350726320,0.8322,2810.2,2809.7,3.55907]
[1740350726553,0.7555,2810.1,2809.7,3.55907]
[1740350726925,0.7555,2810.1,2809.8,3.55888]
[1740350727523,0.7555,2810.1,2810.0,4.10871]
[1740350727722,0.7555,2810.1,2810.0,3.55871]
[1740350727930,0.7555,2810.1,2809.9,3.55877]
[1740350728242,0.7555,2810.1,2809.8,3.55896]
[1740350728415,0.7647,2810.4,2810.1,3.55857]
[1740350728760,0.7647,2810.4,2809.9,3.55878]
[1740350728932,0.438992,2810.6,2809.7,8.94901]
[1740350728933,3.55834,2810.3,2809.7,8.94901]
[1740350729138,0.7994,2810.2,2809.7,8.94901]
[1740350729642,0.7994,2810.2,2809.8,3.55894]
[1740350729847,0.7686,2810.1,2809.7,8.94901]
[1740350730160,4.32719,2810.1,2809.5,3.5593]
[1740350730361,5.511,2810.7,2809.2,5.39]
[1740350730362,0.7686,2809.9,2809.2,5.39]
[1740350730565,3.55925,2809.6,2809.2,5.39]
[1740350730866,0.822,2809.5,2809.2,5.39]
[1740350731766,0.791,2810.3,2810.0,3.55865]
[1740350731924,0.791,2810.3,2810.2,3.55846]
[1740350734878,0.791,2810.3,2810.2,6.55846]
[1740350735676,0.791,2810.3,2810.2,3.0]
[1740350738453,0.791,2810.3,2809.9,3.55872]
[1740350738763,0.791,2810.3,2809.9,3.55877]
[1740350739287,4.34933,2810.3,2809.9,3.55877]
[1740350740646,0.791,2810.3,2809.9,3.55877]
[1740350743643,0.791,2810.3,2809.7,3.55906]
[1740350743856,0.791,2810.3,2809.8,3.55891]
[1740350744397,0.791,2810.3,2809.9,3.5588]
[1740350745404,0.791,2810.3,2809.8,3.55891]
[1740350745694,0.791,2810.3,2810.0,3.55871]
[1740350745870,4.34935,2810.3,2809.8,3.55891]
[1740350747700,7.90776,2810.3,2809.8,3.55891]
[1740350748502,0.8006,2810.2,2809.8,3.55891]
[1740350748995,0.8006,2810.2,2809.9,3.55872]
[1740350752264,0.8006,2810.2,2810.0,3.55864]
[1740350756629,0.8006,2810.2,2810.0,3.55863]
[1740350759036,0.8006,2810.2,2809.8,3.55888]
[1740350759398,0.8006,2810.2,2809.8,7.11779]
[1740350760433,0.8006,2810.2,2809.8,3.55888]
[1740350760635,0.8006,2810.2,2809.8,7.11778]
[1740350761005,0.8006,2810.2,2809.6,8.94921]
[1740350761337,0.8006,2810.2,2810.0,3.55863]
[1740350764842,0.8006,2810.2,2810.1,3.55859]
[1740350765675,0.8006,2810.2,2809.9,3.55876]
[1740350766943,0.8006,2810.2,2810.0,3.55866]
[1740350767838,0.8006,2810.2,2809.9,3.55876]
[1740350768760,0.8006,2810.2,2810.1,3.55859]
[1740350769095,0.8006,2810.2,2809.8,3.55885]
[1740350769387,0.8006,2810.2,2809.9,3.55877]
[1740350772582,0.8006,2810.2,2810.0,3.55869]
[1740350773727,0.8006,2810.2,2810.1,3.55859]
[1740350775119,0.8006,2810.2,2809.9,3.55874]
[1740350775304,0.8006,2810.2,2809.8,3.55887]
[1740350775621,0.8006,2810.2,2809.9,3.55883]
[1740350776824,0.8006,2810.2,2809.8,3.55887]
[1740350777027,0.8006,2810.2,2809.9,3.55884]
[1740350777386,0.8006,2810.2,2810.0,3.55861]
[1740350778350,0.8006,2810.2,2810.0,3.55871]
[1740350779471,0.8006,2810.2,2810.1,3.55859]
[1740350782376,0.26494586,2810.4,2810.1,3.55859]
[1740350782577,1.03254586,2810.4,2810.2,3.55837]
[1740350785736,1.03254586,2810.4,2810.2,7.11676]
[1740350786452,1.03254586,2810.4,2810.2,3.55837]
[1740350786668,1.03254586,2810.4,2810.3,3.55833]
[1740350791985,1.03254586,2810.4,2810.1,3.55858]
[1740350792298,1.03254586,2810.4,2810.2,3.55846]
[1740350793872,1.03254586,2810.4,2810.3,3.55833]
[1740350794485,0.7676,2810.4,2810.3,3.55833]
[1740350796507,6.79043266,2810.7,2810.6,3.55795]
[1740350796712,1.54043266,2810.7,2810.6,3.55795]
[1740350797737,1.75198288,2810.9,2810.6,3.55795]
[1740350797738,0.1497981,2810.9,2810.8,3.5577]
[1740350797881,0.1497981,2810.9,2810.8,4.3333]
[1740350804789,8.1e-06,2810.9,2810.8,4.8833]
[1740350804986,8.1e-06,2811.0,2810.9,7.92027]
[1740350805331,8.1e-06,2811.0,2810.9,17.5452577]
[1740350805630,8.1e-06,2811.0,2810.9,26.4552577]
[1740350805786,0.005,2813.1,2810.9,26.4552577]
[1740350805787,1e-05,2813.1,2812.6,3.0]
[1740350805987,1e-05,2813.1,2813.0,3.88802]
[1740350807993,0.00501,2813.1,2813.0,3.88802]
[1740350808392,0.00501,2813.1,2812.9,3.55496]
[1740350808592,0.00501,2813.1,2812.7,4.13251487]
[1740350808788,0.00501,2813.1,2812.6,3.55541]
[1740350808994,0.8024,2813.0,2812.4,3.55565]
[1740350809528,0.8024,2813.0,2812.4,7.11124]
[1740350810237,0.8024,2813.0,2812.4,3.55559]
[1740350810421,0.8024,2813.0,2812.4,7.11117]
[1740350810618,0.8024,2813.0,2812.4,4.342017]
[1740350810820,0.8024,2813.0,2812.4,3.55558]
[1740350811022,0.8024,2813.0,2812.5,3.55549]
[1740350812245,0.8024,2813.0,2812.6,3.55531]
[1740350813335,0.8024,2813.0,2812.5,3.55549]
[1740350815850,0.8024,2813.0,2812.6,3.55541]
[1740350817136,0.8024,2813.0,2812.7,3.55526]
[1740350817332,0.8024,2813.0,2812.7,3.5553]
[1740350818074,0.8024,2813.0,2812.8,3.55512]
[1740350818282,0.8024,2813.0,2812.7,3.5553]
[1740350818636,0.8024,2813.0,2812.8,3.55517]
[1740350818877,0.8024,2813.0,2812.8,3.55513]
[1740350819480,0.8024,2813.0,2812.6,3.55535]
[1740350819792,0.8024,2813.0,2812.7,3.55523]
[1740350820396,0.8024,2813.0,2812.0,5.39]
[1740350820599,0.8024,2813.0,2812.8,3.5551]
[1740350824997,0.00501,2813.1,2812.9,3.55504]
[1740350825189,0.00501,2813.1,2813.0,3.55492]
[1740350825394,0.00501,2813.1,2813.0,4.31952]
[1740350830195,1e-05,2813.1,2813.0,7.31952]
[1740350830408,1e-05,2813.1,2813.0,14.45885899]
[1740350830705,5.25,2815.9,2813.9,0.8831]
[1740350830861,3.53134871,2816.1,2815.0,3.55232]
[1740350830862,3.81875274,2815.7,2815.0,3.55232]
[1740350831061,3.55177,2815.5,2814.8,7.10518]
[1740350831287,6.47390771,2815.8,2815.0,3.55232]
[1740350831597,5.25,2816.0,2814.6,3.55282]
[1740350831598,4.31062,2815.4,2814.6,3.55282]
[1740350831769,3.55204,2815.3,2814.6,3.55282]
[1740350831971,3.55228,2815.1,2814.4,3.55308]
[1740350832768,2.77264871,2815.2,2814.4,3.55308]
[1740350833000,2.77264871,2815.2,2814.6,3.55283]
[1740350833305,0.7587,2815.4,2814.8,3.55256]
[1740350833599,0.7587,2815.4,2814.9,3.55251]
[1740350833808,1.46509077,2815.7,2815.1,3.55225]
[1740350834384,1.46509077,2815.7,2814.8,3.55258]
[1740350834385,0.8177,2815.7,2814.8,3.55258]
[1740350834607,0.7938,2816.1,2815.5,3.55175]
[1740350835184,0.005,2815.9,2815.6,3.55164]
[1740350836080,0.005,2815.9,2815.4,0.7679]
[1740350836081,0.005,2815.9,2815.7,3.55142]
[1740350836284,7.09250871,2815.8,2815.0,4.34015]
[1740350836484,2.77264871,2815.5,2814.6,0.7878]
[1740350837862,4.26130987,2815.3,2814.6,3.55289]
[1740350838124,4.26130987,2815.3,2814.5,3.553]
[1740350838717,4.26130987,2815.3,2814.4,3.55309]
[1740350838923,3.55234,2815.1,2814.3,3.55317]
[1740350839074,4.61096986,2815.1,2814.3,3.55317]
[1740350839916,3.55265,2814.8,2814.1,5.39]
[1740350840226,3.55305,2814.5,2814.1,5.39]
[1740350840409,4.263653,2814.5,2814.1,5.39]
[1740350841985,3.55328,2814.3,2813.5,3.55428]
[1740350842336,3.55377,2814.0,2813.4,5.39]
[1740350842632,4.31352,2813.9,2813.0,4.75416899]
[1740350842805,3.55391,2813.8,2813.0,7.10978]
[1740350843004,3.55391,2813.8,2813.0,3.55486]
[1740350843812,3.55391,2813.8,2813.0,7.1097]
[1740350844216,3.55391,2813.8,2813.0,3.55484]
[1740350844423,3.55391,2813.8,2813.1,3.55477]
[1740350844424,4.00589576,2813.8,2813.1,3.55477]
[1740350844841,4.00589576,2813.8,2813.2,3.55467]
[1740350844988,7.55988576,2813.8,2813.2,3.55467]
[1740350845314,3.55405,2813.7,2812.9,8.94493]
[1740350845641,3.55405,2813.7,2813.1,3.55473]
[1740350845784,4.66327945,2813.7,2813.1,3.55473]
[1740350846235,4.66327945,2813.7,2813.2,3.55467]
[1740350847732,4.66327945,2813.7,2813.0,3.55482]
[1740350847733,1.10922945,2813.7,2813.0,3.55482]
[1740350847893,7.10851,2813.6,2813.0,3.55482]
[1740350848293,3.55431,2813.5,2813.0,3.55482]
[1740350848516,0.7924,2813.4,2813.0,3.55482]
[1740350849935,0.7924,2813.4,2813.0,3.55481]
[1740350850815,4.34682,2813.4,2813.0,3.55481]
[1740350851335,3.55456,2813.3,2812.9,3.55504]
[1740350851635,3.55456,2813.3,2812.8,3.55516]
[1740350853521,3.55456,2813.3,2812.7,5.39]
[1740350853696,3.55477,2813.2,2812.7,3.55521]
[1740350853898,3.5548,2813.1,2812.6,3.55534]
[1740350854396,4.32443,2813.0,2812.6,3.55534]
[1740350854598,0.7695,2813.0,2812.6,3.55534]
[1740350854831,4.32443,2813.0,2812.6,3.55534]
[1740350856711,3.55513,2812.9,2812.4,3.55558]
[1740350856914,4.32443,2813.0,2812.4,3.55558]
[1740350857102,7.87946,2813.0,2812.5,3.5555]
[1740350857652,8.69298632,2813.0,2812.5,3.5555]
[1740350858701,0.710936,2813.1,2812.7,3.55521]
[1740350859026,0.261,2813.1,2812.8,3.55517]
[1740350859226,0.261,2813.1,2812.7,3.55529]
[1740350859406,3.81579,2813.1,2812.7,3.55529]
[1740350859604,0.261,2813.1,2812.9,3.55492]
[1740350859800,0.261,2813.1,2812.8,3.5551]
[1740350860106,0.725096,2813.1,2812.8,3.5551]
[1740350860436,0.261,2813.1,2812.9,3.55501]
[1740350861042,0.261,2813.1,2812.9,3.55498]
[1740350861219,0.261,2813.1,2813.0,3.55492]
[1740350863344,0.261,2813.1,2812.5,3.55551]
[1740350863345,0.8254,2813.3,2813.2,3.55467]
[1740350863850,1.50823501,2814.1,2813.6,3.55416]
[1740350864013,2.42358201,2814.1,2813.9,3.55377]
[1740350864354,2.42358201,2814.1,2813.2,0.7683]
[1740350864355,2.42358201,2814.1,2813.8,3.55391]
[1740350865198,1.694047,2814.1,2813.8,3.55391]
[1740350865411,1.694047,2814.1,2813.7,3.55403]
[1740350865613,0.72055237,2814.0,2813.7,3.55403]
[1740350867962,0.72055237,2814.0,2813.6,3.55407]
[1740350868279,0.72055237,2814.0,2813.0,3.55482]
[1740350868280,3.55423,2813.6,2813.0,3.55482]
[1740350868455,3.55423,2813.6,2812.9,3.55504]
[1740350868659,5.04363787,2813.5,2813.0,3.55489]
[1740350868858,3.55443,2813.4,2812.9,3.55503]
[1740350869029,0.261,2813.3,2812.8,3.55517]
[1740350869234,3.81555,2813.3,2812.8,3.55517]
[1740350869470,3.81555,2813.3,2812.7,3.55528]
[1740350869631,0.7617,2813.0,2812.5,3.55544]
[1740350869835,0.7617,2813.0,2812.6,3.55536]
[1740350870175,3.55507,2812.9,2812.5,3.55544]
[1740350870341,3.55507,2812.9,2812.3,3.55571]
[1740350870546,3.55507,2812.9,2812.3,7.11141]
[1740350870547,3.55504,2812.9,2812.3,7.11141]
[1740350870749,4.26397887,2812.9,2812.3,7.11141]
[1740350871446,2.77264871,2812.8,2812.4,3.55558]
[1740350871651,2.77264871,2812.8,2812.2,3.55586]
[1740350871845,2.77264871,2812.8,2812.3,3.55573]
[1740350872046,3.55518,2812.8,2812.3,3.55573]
[1740350872253,0.78191589,2812.7,2812.3,3.55573]
[1740350877398,3.55556,2812.5,2812.1,3.55598]
[1740350877573,0.26,2812.4,2812.0,3.55616]
[1740350877899,0.26,2812.4,2811.9,3.55624]
[1740350877900,3.81569,2812.4,2811.9,3.5563]
[1740350878458,3.81569,2812.4,2811.8,3.55643]
[1740350878459,0.26,2812.4,2811.8,3.55642]
[1740350878706,0.381565,2812.3,2812.1,3.55597]
[1740350878862,0.26,2812.4,2812.1,3.55597]
[1740350879064,0.7843,2812.3,2811.4,3.55691]
[1740350879374,3.55599,2812.2,2811.7,3.55655]
[1740350879554,3.55599,2812.2,2811.8,3.55642]
[1740350879759,3.55599,2812.2,2811.6,3.55661]
[1740350879998,0.434029,2812.1,2811.7,3.55656]
[1740350880902,0.7675,2812.0,2811.4,3.55682]
[1740350881060,4.32376,2812.0,2811.4,3.55682]
[1740350881254,3.55634,2811.9,2811.4,3.55682]
[1740350881487,4.3877529,2811.9,2811.4,7.11369]
[1740350881693,0.8314129,2811.9,2811.2,3.55712]
[1740350882103,0.7675,2811.7,2811.2,3.5571]
[1740350882303,0.261,2811.6,2811.4,3.55688]
[1740350882660,0.261,2811.6,2811.5,3.55682]
[1740350883346,0.7675,2812.0,2811.6,3.55669]
[1740350883649,0.261,2811.8,2811.7,3.55656]
[1740350884916,0.7675,2812.0,2811.8,3.55633]
[1740350885110,0.7675,2812.0,2811.9,3.55631]
[1740350885309,0.26,2812.2,2811.9,3.55631]
[1740350885550,0.88775,2812.2,2812.0,3.55618]
[1740350886153,0.62775,2812.2,2812.0,3.55618]
[1740350886322,0.88775,2812.2,2812.0,3.55618]
[1740350888914,3.55612,2812.1,2811.6,3.55665]
[1740350889113,0.444387,2812.0,2811.6,3.55661]
[1740350889349,4.000587,2812.0,2811.6,3.55661]
[1740350889927,0.444387,2812.0,2811.6,3.55661]
[1740350890227,0.444387,2812.0,2811.7,3.55656]
[1740350890593,0.444387,2812.0,2811.6,3.55661]
[1740350890594,0.444387,2812.0,2811.6,3.55668]
[1740350890878,0.7645,2811.8,2811.0,0.8027]
[1740350891078,0.7645,2811.8,2811.5,3.55679]
[1740350891680,4.32096,2811.8,2811.3,3.55702]
[1740350894985,3.55658,2811.7,2811.3,3.55702]
[1740350895778,0.7645,2811.8,2810.9,3.55748]
[1740350896076,4.3818,2811.5,2810.9,7.11497]
[1740350896285,3.55696,2811.4,2810.9,7.11497]
[1740350896637,3.55696,2811.4,2810.9,3.55748]
[1740350896983,3.55696,2811.4,2810.9,7.11499]
[1740350897836,0.7509,2811.3,2810.9,7.11499]
[1740350898814,0.7509,2811.3,2811.0,3.55744]
[1740350900600,0.7509,2811.3,2810.9,3.55748]
[1740350900816,0.7509,2811.3,2810.6,5.39]
[1740350900817,0.7509,2811.3,2811.1,3.55732]
[1740350901127,1.0329,2811.8,2811.4,3.55682]
[1740350901324,0.49893007,2811.7,2811.5,3.55682]
[1740350902612,1.0329,2811.8,2811.6,3.55669]
[1740350902928,3.5567,2811.6,2811.1,7.11448]
[1740350903176,4.32946,2811.7,2810.7,3.55783]
[1740350903456,0.7729,2811.7,2811.5,3.55676]
[1740350903829,0.7729,2811.7,2811.5,3.55679]
[1740350904025,0.7729,2811.7,2811.4,3.55683]
[1740350904259,0.7729,2811.7,2811.5,3.55679]
[1740350904441,0.7729,2811.7,2811.4,7.11366]
[1740350904643,0.7729,2811.7,2811.5,3.55679]
[1740350905758,0.67280663,2811.9,2811.6,3.55661]
[1740350905957,7.992,2812.7,2811.7,0.7532]
[1740350906117,7.992,2812.7,2812.3,3.55573]
[1740350906316,8.252,2812.7,2812.3,3.55573]
[1740350906561,7.992,2812.7,2812.5,3.55544]
[1740350907061,4.32259,2813.1,2812.9,3.55495]
[1740350907062,1.0287,2813.1,2812.9,3.55495]
[1740350907557,0.261,2813.1,2812.9,3.55495]
[1740350908118,0.261,2813.1,2812.7,3.55526]
[1740350908319,0.261,2813.1,2812.7,7.11044]
[1740350909260,0.261,2813.1,2812.7,3.55518]
[1740350910664,0.261,2813.1,2812.5,7.1109]
[1740350911528,0.261,2813.1,2812.5,3.55543]
[1740350911739,0.261,2813.1,2812.6,3.55539]
[1740350913037,0.261,2813.1,2812.6,7.11074]
[1740350913267,0.261,2813.1,2812.6,3.55535]
[1740350914170,3.55468,2813.2,2812.6,3.55535]
[1740350914490,4.41311584,2813.2,2812.6,3.55535]
[1740350914850,7.96786584,2813.2,2812.6,3.55535]
[1740350915275,3.55485,2813.1,2812.5,3.55554]